{"text_format":"1","workbook":"xlsx","n_sheets":4,"sheets":["Разрез по профилям","Разрез по странам","Таблица","Справочники"],"not_rendered":{"charts":0,"images":0,"macros":1,"external_links":0,"defined_names":0,"comments":0,"pivot_tables":0},"unopened":[],"bounds":{"document_bytes":16777216,"sheet_cells":100000,"rows_first":2000,"rows_last":500,"rows_between":2000,"halvings":0,"cell_chars":16384,"cell_head_chars":4096},"cells_cut":0,"cells_raw":0,"read":"whole","date_system":"1900"}

{"sheet":"Разрез по профилям","index":0,"n_rows":58,"n_cols":15,"rows_kept":58,"cut":false,"hidden":false,"merged":[[1,0,1,11],[0,0,0,11],[2,0,2,1],[2,2,2,11],[3,1,6,1],[3,0,6,0],[3,2,6,2],[3,3,6,3],[3,4,3,10],[10,2,12,2],[13,2,15,2],[16,2,18,2],[7,2,9,2],[3,11,6,11],[4,4,6,4],[4,5,6,5],[4,6,6,6],[4,7,4,10],[5,7,6,7],[5,8,5,10]]}
["Приложение 1",null,null,null,null,null,null,null,null,null,null,null,null,"Перечень профилей","Перечень МО"]
["ред. 20.09.2019",null,null,null,null,null,null,null,null,null,null,null,null,"Акушерское дело","Выберите организацию"]
["Наименование медицинской организации",null,"Выберите организацию",null,null,null,null,null,null,null,null,null,null,"Акушерство и гинекология","Рыбинская станция переливания крови"]
["№ строки","Наименование показателя","Профиль","Единица измерения","Объемы медицинской помощи и финансирования за счет:",null,null,null,null,null,null,"итого",null,"Аллергология и иммунология","Городская больница № 1"]
[null,null,null,null,"федерального бюджета","консолидированного бюджета субъекта","средств ОМС","негосударственных источников",null,null,null,null,null,"Анестезиология и реаниматология","Городская больница № 2 им. Н.И. Пирогова"]
[null,null,null,null,null,null,null,"всего","в том числе",null,null,null,null,"Гастроэнтерология","Городская больница № 3"]
[null,null,null,null,null,null,null,null,"негосударственных источников в т.ч. домашних хозяйств (личных средств граждан)","негосударственных источников в т.ч. добровольного медицинского страхования","негосударственных источников в т.ч. прочих источников финансирования",null,null,"Гематология","Городская больница № 4"]
[null,"Удалить","Выберите профиль","руб.",null,null,null,{"$f":"SUM(I8:K8)","v":0},null,null,null,{"$f":"E8+F8+G8+H8","v":0},14,"Гериатрия","Городская больница № 6"]
[null,null,null,"лиц, которым оказана медицинская помощь, чел.",null,null,null,{"$f":"SUM(I9:K9)","v":0},null,null,null,{"$f":"E9+F9+G9+H9","v":0},17,"Неврология","Городская поликлиника № 3 им. Н.А. Семашко"]
[null,null,null,"посещений",null,null,null,0,null,null,null,0,20,"Онкология, радиология, радиотерапия","Рыбинская психиатрическая больница"]
["2.1.","медицинская помощь, оказанная в амбулаторных условиях с учетом профиля медицинской помощи","Всего","руб.",{"$f":"IF(ISERROR(SUMPRODUCT((#REF!=D11)*#REF!)),\"\",SUMPRODUCT((#REF!=D11)*#REF!))","v":""},{"$f":"IF(ISERROR(SUMPRODUCT((#REF!=D11)*#REF!)),\"\",SUMPRODUCT((#REF!=D11)*#REF!))","v":""},{"$f":"IF(ISERROR(SUMPRODUCT((#REF!=D11)*#REF!)),\"\",SUMPRODUCT((#REF!=D11)*#REF!))","v":""},0,{"$f":"IF(ISERROR(SUMPRODUCT((#REF!=D11)*#REF!)),\"\",SUMPRODUCT((#REF!=D11)*#REF!))","v":""},{"$f":"IF(ISERROR(SUMPRODUCT((#REF!=D11)*#REF!)),\"\",SUMPRODUCT((#REF!=D11)*#REF!))","v":""},{"$f":"IF(ISERROR(SUMPRODUCT((#REF!=D11)*#REF!)),\"\",SUMPRODUCT((#REF!=D11)*#REF!))","v":""},{"$f":"IF(ISERROR(E11+F11+G11+H11),0,E11+F11+G11+H11)","v":0},null,"Детская онкология","Городская детская больница"]
[null,null,null,"лиц, которым оказана медицинская помощь, чел.",{"$f":"IF(ISERROR(SUMPRODUCT((#REF!=D12)*#REF!)),\"\",SUMPRODUCT((#REF!=D12)*#REF!))","v":""},{"$f":"IF(ISERROR(SUMPRODUCT((#REF!=D12)*#REF!)),\"\",SUMPRODUCT((#REF!=D12)*#REF!))","v":""},{"$f":"IF(ISERROR(SUMPRODUCT((#REF!=D12)*#REF!)),\"\",SUMPRODUCT((#REF!=D12)*#REF!))","v":""},0,{"$f":"IF(ISERROR(SUMPRODUCT((#REF!=D12)*#REF!)),\"\",SUMPRODUCT((#REF!=D12)*#REF!))","v":""},{"$f":"IF(ISERROR(SUMPRODUCT((#REF!=D12)*#REF!)),\"\",SUMPRODUCT((#REF!=D12)*#REF!))","v":""},{"$f":"IF(ISERROR(SUMPRODUCT((#REF!=D12)*#REF!)),\"\",SUMPRODUCT((#REF!=D12)*#REF!))","v":""},{"$f":"IF(ISERROR(E12+F12+G12+H12),0,E12+F12+G12+H12)","v":0},null,"Дерматовенерология","Станция скорой медицинской помощи (г. Рыбинск)"]
[null,null,null,"посещений",{"$f":"IF(ISERROR(SUMPRODUCT((#REF!=D13)*#REF!)),\"\",SUMPRODUCT((#REF!=D13)*#REF!))","v":""},{"$f":"IF(ISERROR(SUMPRODUCT((#REF!=D13)*#REF!)),\"\",SUMPRODUCT((#REF!=D13)*#REF!))","v":""},{"$f":"IF(ISERROR(SUMPRODUCT((#REF!=D13)*#REF!)),\"\",SUMPRODUCT((#REF!=D13)*#REF!))","v":""},0,{"$f":"IF(ISERROR(SUMPRODUCT((#REF!=D13)*#REF!)),\"\",SUMPRODUCT((#REF!=D13)*#REF!))","v":""},{"$f":"IF(ISERROR(SUMPRODUCT((#REF!=D13)*#REF!)),\"\",SUMPRODUCT((#REF!=D13)*#REF!))","v":""},{"$f":"IF(ISERROR(SUMPRODUCT((#REF!=D13)*#REF!)),\"\",SUMPRODUCT((#REF!=D13)*#REF!))","v":""},0,null,"Инфекционные болезни","Рыбинская стоматологическая поликлиника"]
["3.1.","медицинская помощь, оказанная в стационарных условиях с учетом профиля медицинской помощи","Всего","руб.",{"$f":"IF(ISERROR(SUMPRODUCT((#REF!=D14)*#REF!)),\"\",SUMPRODUCT((#REF!=D14)*#REF!))","v":""},{"$f":"IF(ISERROR(SUMPRODUCT((#REF!=D14)*#REF!)),\"\",SUMPRODUCT((#REF!=D14)*#REF!))","v":""},{"$f":"IF(ISERROR(SUMPRODUCT((#REF!=D14)*#REF!)),\"\",SUMPRODUCT((#REF!=D14)*#REF!))","v":""},0,{"$f":"IF(ISERROR(SUMPRODUCT((#REF!=D14)*#REF!)),\"\",SUMPRODUCT((#REF!=D14)*#REF!))","v":""},{"$f":"IF(ISERROR(SUMPRODUCT((#REF!=D14)*#REF!)),\"\",SUMPRODUCT((#REF!=D14)*#REF!))","v":""},{"$f":"IF(ISERROR(SUMPRODUCT((#REF!=D14)*#REF!)),\"\",SUMPRODUCT((#REF!=D14)*#REF!))","v":""},0,null,"Кардиология","Клиническая больница скорой медицинской помощи имени Н.В. Соловьева"]
[null,null,null,"лиц, которым оказана медицинская помощь, чел.",{"$f":"IF(ISERROR(SUMPRODUCT((#REF!=D15)*#REF!)),\"\",SUMPRODUCT((#REF!=D15)*#REF!))","v":""},{"$f":"IF(ISERROR(SUMPRODUCT((#REF!=D15)*#REF!)),\"\",SUMPRODUCT((#REF!=D15)*#REF!))","v":""},{"$f":"IF(ISERROR(SUMPRODUCT((#REF!=D15)*#REF!)),\"\",SUMPRODUCT((#REF!=D15)*#REF!))","v":""},0,{"$f":"IF(ISERROR(SUMPRODUCT((#REF!=D15)*#REF!)),\"\",SUMPRODUCT((#REF!=D15)*#REF!))","v":""},{"$f":"IF(ISERROR(SUMPRODUCT((#REF!=D15)*#REF!)),\"\",SUMPRODUCT((#REF!=D15)*#REF!))","v":""},{"$f":"IF(ISERROR(SUMPRODUCT((#REF!=D15)*#REF!)),\"\",SUMPRODUCT((#REF!=D15)*#REF!))","v":""},0,null,"Детская кардиология","Городская больница имени Н.А.Семашко"]
[null,null,null,"случаев госпитализации",{"$f":"IF(ISERROR(SUMPRODUCT((#REF!=D16)*#REF!)),\"\",SUMPRODUCT((#REF!=D16)*#REF!))","v":""},{"$f":"IF(ISERROR(SUMPRODUCT((#REF!=D16)*#REF!)),\"\",SUMPRODUCT((#REF!=D16)*#REF!))","v":""},{"$f":"IF(ISERROR(SUMPRODUCT((#REF!=D16)*#REF!)),\"\",SUMPRODUCT((#REF!=D16)*#REF!))","v":""},0,{"$f":"IF(ISERROR(SUMPRODUCT((#REF!=D16)*#REF!)),\"\",SUMPRODUCT((#REF!=D16)*#REF!))","v":""},{"$f":"IF(ISERROR(SUMPRODUCT((#REF!=D16)*#REF!)),\"\",SUMPRODUCT((#REF!=D16)*#REF!))","v":""},{"$f":"IF(ISERROR(SUMPRODUCT((#REF!=D16)*#REF!)),\"\",SUMPRODUCT((#REF!=D16)*#REF!))","v":""},0,null,"Колопроктология","Клиническая больница № 2"]
["4.1.","медицинская помощь в условиях дневного стационара с учетом профиля медицинской помощи","Всего","руб.",{"$f":"IF(ISERROR(SUMPRODUCT((#REF!=D17)*#REF!)),\"\",SUMPRODUCT((#REF!=D17)*#REF!))","v":""},{"$f":"IF(ISERROR(SUMPRODUCT((#REF!=D17)*#REF!)),\"\",SUMPRODUCT((#REF!=D17)*#REF!))","v":""},{"$f":"IF(ISERROR(SUMPRODUCT((#REF!=D17)*#REF!)),\"\",SUMPRODUCT((#REF!=D17)*#REF!))","v":""},0,{"$f":"IF(ISERROR(SUMPRODUCT((#REF!=D17)*#REF!)),\"\",SUMPRODUCT((#REF!=D17)*#REF!))","v":""},{"$f":"IF(ISERROR(SUMPRODUCT((#REF!=D17)*#REF!)),\"\",SUMPRODUCT((#REF!=D17)*#REF!))","v":""},{"$f":"IF(ISERROR(SUMPRODUCT((#REF!=D17)*#REF!)),\"\",SUMPRODUCT((#REF!=D17)*#REF!))","v":""},0,null,"Комплексные медицинские осмотры","Клиническая больница № 3"]
[null,null,null,"лиц, которым оказана медицинская помощь, чел.",{"$f":"IF(ISERROR(SUMPRODUCT((#REF!=D18)*#REF!)),\"\",SUMPRODUCT((#REF!=D18)*#REF!))","v":""},{"$f":"IF(ISERROR(SUMPRODUCT((#REF!=D18)*#REF!)),\"\",SUMPRODUCT((#REF!=D18)*#REF!))","v":""},{"$f":"IF(ISERROR(SUMPRODUCT((#REF!=D18)*#REF!)),\"\",SUMPRODUCT((#REF!=D18)*#REF!))","v":""},0,{"$f":"IF(ISERROR(SUMPRODUCT((#REF!=D18)*#REF!)),\"\",SUMPRODUCT((#REF!=D18)*#REF!))","v":""},{"$f":"IF(ISERROR(SUMPRODUCT((#REF!=D18)*#REF!)),\"\",SUMPRODUCT((#REF!=D18)*#REF!))","v":""},{"$f":"IF(ISERROR(SUMPRODUCT((#REF!=D18)*#REF!)),\"\",SUMPRODUCT((#REF!=D18)*#REF!))","v":""},0,null,"Косметология","Клиническая больница № 8"]
[null,null,null,"случаев лечения",{"$f":"IF(ISERROR(SUMPRODUCT((#REF!=D19)*#REF!)),\"\",SUMPRODUCT((#REF!=D19)*#REF!))","v":""},{"$f":"IF(ISERROR(SUMPRODUCT((#REF!=D19)*#REF!)),\"\",SUMPRODUCT((#REF!=D19)*#REF!))","v":""},{"$f":"IF(ISERROR(SUMPRODUCT((#REF!=D19)*#REF!)),\"\",SUMPRODUCT((#REF!=D19)*#REF!))","v":""},0,{"$f":"IF(ISERROR(SUMPRODUCT((#REF!=D19)*#REF!)),\"\",SUMPRODUCT((#REF!=D19)*#REF!))","v":""},{"$f":"IF(ISERROR(SUMPRODUCT((#REF!=D19)*#REF!)),\"\",SUMPRODUCT((#REF!=D19)*#REF!))","v":""},{"$f":"IF(ISERROR(SUMPRODUCT((#REF!=D19)*#REF!)),\"\",SUMPRODUCT((#REF!=D19)*#REF!))","v":""},0,null,"Медицинская реабилитация","Клиническая больница № 9"]
[null,null,null,null,null,null,null,null,null,null,null,null,null,"Нейрохирургия","Клиническая больница № 10"]
[null,null,null,null,null,null,null,null,null,null,null,null,null,"Неонатология","Центральная городская больница"]
[null,null,null,null,null,null,null,null,null,null,null,null,null,"Нефрология","Детская поликлиника № 3"]
[null,null,null,null,null,null,null,null,null,null,null,null,null,"Оториноларингология","Детская поликлиника № 5"]
[null,null,null,null,null,null,null,null,null,null,null,null,null,"Офтальмология","Инфекционная клиническая больница"]
[null,null,null,null,null,null,null,null,null,null,null,null,null,"Педиатрия","Территориальный центр медицины катастроф"]
[null,null,null,null,null,null,null,null,null,null,null,null,null,"Психиатрия","Областная детская клиническая больница"]
[null,null,null,null,null,null,null,null,null,null,null,null,null,"Психиатрия-наркология","Областная клиническая больница"]
[null,null,null,null,null,null,null,null,null,null,null,null,null,"Психотерапия","Областная клиническая онкологическая больница"]
[null,null,null,null,null,null,null,null,null,null,null,null,null,"Пульмонология","Областная клиническая туберкулезная больница"]
[null,null,null,null,null,null,null,null,null,null,null,null,null,"Ревматология","Областная станция переливания крови"]
[null,null,null,null,null,null,null,null,null,null,null,null,null,"Санаторно-курортное лечение","Областной врачебно-физкультурный диспансер"]
[null,null,null,null,null,null,null,null,null,null,null,null,null,"Сердечно-сосудистая хирургия","Областной кожно-венерологический диспансер"]
[null,null,null,null,null,null,null,null,null,null,null,null,null,"Стоматология (в т.ч. ортодонтия, ортопедия и имплантология)","Областной перинатальный центр"]
[null,null,null,null,null,null,null,null,null,null,null,null,null,"Детская стоматология","Ярославская областная клиническая наркологическая больница"]
[null,null,null,null,null,null,null,null,null,null,null,null,null,"Терапия","Ярославская областная клиническая психиатрическая больница"]
[null,null,null,null,null,null,null,null,null,null,null,null,null,"Травматология и ортопедия","Ярославская областная стоматологическая поликлиника"]
[null,null,null,null,null,null,null,null,null,null,null,null,null,"Трансплатология","Ярославский областной клинический госпиталь ветеранов войн - международный Центр по проблемам пожилых людей Здоровое долголетие"]
[null,null,null,null,null,null,null,null,null,null,null,null,null,"Урология (в т.ч. детская урология-андрология)","Областной специализированный дом ребенка №1"]
[null,null,null,null,null,null,null,null,null,null,null,null,null,"Фтизиатрия","Специализированный дом ребенка №2"]
[null,null,null,null,null,null,null,null,null,null,null,null,null,"Хирургия","Станция скорой медицинской помощи (г. Ярославль)"]
[null,null,null,null,null,null,null,null,null,null,null,null,null,"Детская хирургия","Большесельская центральная районная больница"]
[null,null,null,null,null,null,null,null,null,null,null,null,null,"Хирургия пластическая","Борисоглебская центральная районная больница"]
[null,null,null,null,null,null,null,null,null,null,null,null,null,"Челюстно-лицевая хирургия","Брейтовская центральная районная больница"]
[null,null,null,null,null,null,null,null,null,null,null,null,null,"Экстракорпоральное оплодотворение","Гаврилов-Ямская центральная районная больница"]
[null,null,null,null,null,null,null,null,null,null,null,null,null,"Эндокринология","Даниловская центральная районная больница"]
[null,null,null,null,null,null,null,null,null,null,null,null,null,"Детская эндокринология","Любимская центральная районная больница"]
[null,null,null,null,null,null,null,null,null,null,null,null,null,"Прочие","Центральная районная больница им. Д.Л. Соколова"]
[null,null,null,null,null,null,null,null,null,null,null,null,null,null,"Некоузская центральная районная больница"]
[null,null,null,null,null,null,null,null,null,null,null,null,null,null,"Некрасовская центральная районная больница"]
[null,null,null,null,null,null,null,null,null,null,null,null,null,null,"Бурмакинская районная больница № 1"]
[null,null,null,null,null,null,null,null,null,null,null,null,null,null,"Пречистенская центральная районная больница"]
[null,null,null,null,null,null,null,null,null,null,null,null,null,null,"Переславская центральная районная больница"]
[null,null,null,null,null,null,null,null,null,null,null,null,null,null,"Пошехонская центральная районная больница"]
[null,null,null,null,null,null,null,null,null,null,null,null,null,null,"Ростовская центральная районная больница"]
[null,null,null,null,null,null,null,null,null,null,null,null,null,null,"Рыбинская центральная районная поликлиника"]
[null,null,null,null,null,null,null,null,null,null,null,null,null,null,"Тутаевская центральная районная больница"]
[null,null,null,null,null,null,null,null,null,null,null,null,null,null,"Угличская центральная районная больница"]
[null,null,null,null,null,null,null,null,null,null,null,null,null,null,"Ярославская центральная районная больница"]

{"sheet":"Разрез по странам","index":1,"n_rows":248,"n_cols":14,"rows_kept":248,"cut":false,"hidden":false,"merged":[[0,0,0,11],[1,0,1,11],[2,2,2,11],[2,0,2,1],[3,1,6,1],[3,0,6,0],[3,2,6,2],[3,3,6,3],[3,4,3,10],[10,2,12,2],[13,2,15,2],[16,2,18,2],[7,2,9,2],[3,11,6,11],[4,4,6,4],[4,5,6,5],[4,6,6,6],[4,7,4,10],[5,7,6,7],[5,8,5,10]]}
["Приложение 2",null,null,null,null,null,null,null,null,null,null,null,null,"Перечень стран"]
[null,null,null,null,null,null,null,null,null,null,null,null,null,"Абхазия "]
["Наименование медицинской организации",null,{"$f":"IF('Разрез по профилям'!C3:L3 <> \"\",'Разрез по профилям'!C3:L3,\"\")","v":"Выберите организацию"},null,null,null,null,null,null,null,null,null,null,"Австралия"]
["№ строки","Наименование показателя","Страна","Единица измерения","Объемы медицинской помощи и финансирования за счет:",null,null,null,null,null,null,"итого",null,"Австрия"]
[null,null,null,null,"федерального бюджета","консолидированного бюджета субъекта","средств ОМС","негосударственных источников",null,null,null,null,null,"Азад Кашмир"]
[null,null,null,null,null,null,null,"негосударственных источников","в том числе",null,null,null,null,"Азербайджан"]
[null,null,null,null,null,null,null,null,"негосударственных источников в т.ч. домашних хозяйств (личных средств граждан)","негосударственных источников в т.ч. добровольного медицинского страхования","негосударственных источников в т.ч. прочих источников финансирования",null,null,"Аландские острова"]
[null,"Удалить","Выберите страну проживания","руб.",null,null,null,{"$f":"SUM(I8:K8)","v":0},null,null,null,{"$f":"E8+F8+G8+H8","v":0},14,"Албания "]
[null,null,null,"лиц, которым оказана медицинская помощь, чел.",null,null,null,0,null,null,null,{"$f":"E9+F9+G9+H9","v":0},17,"Алжир "]
[null,null,null,"посещений",null,null,null,0,null,null,null,0,20,"Ангилья"]
["2.2.","медицинская помощь, оказанная в амбулаторных условиях, с учетом гражданства пациентов","Всего","руб.",{"$f":"IF(ISERROR(SUMPRODUCT((#REF!=D11)*#REF!)),\"\",SUMPRODUCT((#REF!=D11)*#REF!))","v":""},{"$f":"IF(ISERROR(SUMPRODUCT((#REF!=D11)*#REF!)),\"\",SUMPRODUCT((#REF!=D11)*#REF!))","v":""},{"$f":"IF(ISERROR(SUMPRODUCT((#REF!=D11)*#REF!)),\"\",SUMPRODUCT((#REF!=D11)*#REF!))","v":""},{"$f":"SUM(I11:K11)","v":0},{"$f":"IF(ISERROR(SUMPRODUCT((#REF!=D11)*#REF!)),\"\",SUMPRODUCT((#REF!=D11)*#REF!))","v":""},{"$f":"IF(ISERROR(SUMPRODUCT((#REF!=D11)*#REF!)),\"\",SUMPRODUCT((#REF!=D11)*#REF!))","v":""},{"$f":"IF(ISERROR(SUMPRODUCT((#REF!=D11)*#REF!)),\"\",SUMPRODUCT((#REF!=D11)*#REF!))","v":""},{"$f":"IF(ISERROR(E11+F11+G11+H11),0,E11+F11+G11+H11)","v":0},null,"Ангола "]
[null,null,null,"лиц, которым оказана медицинская помощь, чел.",{"$f":"IF(ISERROR(SUMPRODUCT((#REF!=D12)*#REF!)),\"\",SUMPRODUCT((#REF!=D12)*#REF!))","v":""},{"$f":"IF(ISERROR(SUMPRODUCT((#REF!=D12)*#REF!)),\"\",SUMPRODUCT((#REF!=D12)*#REF!))","v":""},{"$f":"IF(ISERROR(SUMPRODUCT((#REF!=D12)*#REF!)),\"\",SUMPRODUCT((#REF!=D12)*#REF!))","v":""},{"$f":"SUM(I12:K12)","v":0},{"$f":"IF(ISERROR(SUMPRODUCT((#REF!=D12)*#REF!)),\"\",SUMPRODUCT((#REF!=D12)*#REF!))","v":""},{"$f":"IF(ISERROR(SUMPRODUCT((#REF!=D12)*#REF!)),\"\",SUMPRODUCT((#REF!=D12)*#REF!))","v":""},{"$f":"IF(ISERROR(SUMPRODUCT((#REF!=D12)*#REF!)),\"\",SUMPRODUCT((#REF!=D12)*#REF!))","v":""},{"$f":"IF(ISERROR(E12+F12+G12+H12),0,E12+F12+G12+H12)","v":0},null,"Андорра "]
[null,null,null,"посещений",{"$f":"IF(ISERROR(SUMPRODUCT((#REF!=D13)*#REF!)),\"\",SUMPRODUCT((#REF!=D13)*#REF!))","v":""},{"$f":"IF(ISERROR(SUMPRODUCT((#REF!=D13)*#REF!)),\"\",SUMPRODUCT((#REF!=D13)*#REF!))","v":""},{"$f":"IF(ISERROR(SUMPRODUCT((#REF!=D13)*#REF!)),\"\",SUMPRODUCT((#REF!=D13)*#REF!))","v":""},0,{"$f":"IF(ISERROR(SUMPRODUCT((#REF!=D13)*#REF!)),\"\",SUMPRODUCT((#REF!=D13)*#REF!))","v":""},{"$f":"IF(ISERROR(SUMPRODUCT((#REF!=D13)*#REF!)),\"\",SUMPRODUCT((#REF!=D13)*#REF!))","v":""},{"$f":"IF(ISERROR(SUMPRODUCT((#REF!=D13)*#REF!)),\"\",SUMPRODUCT((#REF!=D13)*#REF!))","v":""},0,null,"Антигуа и Барбуда"]
["3.2.","медицинская помощь, оказанная в стационарных условиях с учетом гражданства пациентов","Всего","руб.",{"$f":"IF(ISERROR(SUMPRODUCT((#REF!=D14)*#REF!)),\"\",SUMPRODUCT((#REF!=D14)*#REF!))","v":""},{"$f":"IF(ISERROR(SUMPRODUCT((#REF!=D14)*#REF!)),\"\",SUMPRODUCT((#REF!=D14)*#REF!))","v":""},{"$f":"IF(ISERROR(SUMPRODUCT((#REF!=D14)*#REF!)),\"\",SUMPRODUCT((#REF!=D14)*#REF!))","v":""},0,{"$f":"IF(ISERROR(SUMPRODUCT((#REF!=D14)*#REF!)),\"\",SUMPRODUCT((#REF!=D14)*#REF!))","v":""},{"$f":"IF(ISERROR(SUMPRODUCT((#REF!=D14)*#REF!)),\"\",SUMPRODUCT((#REF!=D14)*#REF!))","v":""},{"$f":"IF(ISERROR(SUMPRODUCT((#REF!=D14)*#REF!)),\"\",SUMPRODUCT((#REF!=D14)*#REF!))","v":""},0,null,"Аргентина"]
[null,null,null,"лиц, которым оказана медицинская помощь, чел.",{"$f":"IF(ISERROR(SUMPRODUCT((#REF!=D15)*#REF!)),\"\",SUMPRODUCT((#REF!=D15)*#REF!))","v":""},{"$f":"IF(ISERROR(SUMPRODUCT((#REF!=D15)*#REF!)),\"\",SUMPRODUCT((#REF!=D15)*#REF!))","v":""},{"$f":"IF(ISERROR(SUMPRODUCT((#REF!=D15)*#REF!)),\"\",SUMPRODUCT((#REF!=D15)*#REF!))","v":""},0,{"$f":"IF(ISERROR(SUMPRODUCT((#REF!=D15)*#REF!)),\"\",SUMPRODUCT((#REF!=D15)*#REF!))","v":""},{"$f":"IF(ISERROR(SUMPRODUCT((#REF!=D15)*#REF!)),\"\",SUMPRODUCT((#REF!=D15)*#REF!))","v":""},{"$f":"IF(ISERROR(SUMPRODUCT((#REF!=D15)*#REF!)),\"\",SUMPRODUCT((#REF!=D15)*#REF!))","v":""},0,null,"Армения"]
[null,null,null,"случаев госпитлизации",{"$f":"IF(ISERROR(SUMPRODUCT((#REF!=D16)*#REF!)),\"\",SUMPRODUCT((#REF!=D16)*#REF!))","v":""},{"$f":"IF(ISERROR(SUMPRODUCT((#REF!=D16)*#REF!)),\"\",SUMPRODUCT((#REF!=D16)*#REF!))","v":""},{"$f":"IF(ISERROR(SUMPRODUCT((#REF!=D16)*#REF!)),\"\",SUMPRODUCT((#REF!=D16)*#REF!))","v":""},0,{"$f":"IF(ISERROR(SUMPRODUCT((#REF!=D16)*#REF!)),\"\",SUMPRODUCT((#REF!=D16)*#REF!))","v":""},{"$f":"IF(ISERROR(SUMPRODUCT((#REF!=D16)*#REF!)),\"\",SUMPRODUCT((#REF!=D16)*#REF!))","v":""},{"$f":"IF(ISERROR(SUMPRODUCT((#REF!=D16)*#REF!)),\"\",SUMPRODUCT((#REF!=D16)*#REF!))","v":""},0,null,"Аруба"]
["4.2.","медицинская помощь в условиях дневного стационара с учетом гражданства пациентов","Всего","руб.",{"$f":"IF(ISERROR(SUMPRODUCT((#REF!=D17)*#REF!)),\"\",SUMPRODUCT((#REF!=D17)*#REF!))","v":""},{"$f":"IF(ISERROR(SUMPRODUCT((#REF!=D17)*#REF!)),\"\",SUMPRODUCT((#REF!=D17)*#REF!))","v":""},{"$f":"IF(ISERROR(SUMPRODUCT((#REF!=D17)*#REF!)),\"\",SUMPRODUCT((#REF!=D17)*#REF!))","v":""},0,{"$f":"IF(ISERROR(SUMPRODUCT((#REF!=D17)*#REF!)),\"\",SUMPRODUCT((#REF!=D17)*#REF!))","v":""},{"$f":"IF(ISERROR(SUMPRODUCT((#REF!=D17)*#REF!)),\"\",SUMPRODUCT((#REF!=D17)*#REF!))","v":""},{"$f":"IF(ISERROR(SUMPRODUCT((#REF!=D17)*#REF!)),\"\",SUMPRODUCT((#REF!=D17)*#REF!))","v":""},0,null,"Афганистан"]
[null,null,null,"лиц, которым оказана медицинская помощь, чел.",{"$f":"IF(ISERROR(SUMPRODUCT((#REF!=D18)*#REF!)),\"\",SUMPRODUCT((#REF!=D18)*#REF!))","v":""},{"$f":"IF(ISERROR(SUMPRODUCT((#REF!=D18)*#REF!)),\"\",SUMPRODUCT((#REF!=D18)*#REF!))","v":""},{"$f":"IF(ISERROR(SUMPRODUCT((#REF!=D18)*#REF!)),\"\",SUMPRODUCT((#REF!=D18)*#REF!))","v":""},0,{"$f":"IF(ISERROR(SUMPRODUCT((#REF!=D18)*#REF!)),\"\",SUMPRODUCT((#REF!=D18)*#REF!))","v":""},{"$f":"IF(ISERROR(SUMPRODUCT((#REF!=D18)*#REF!)),\"\",SUMPRODUCT((#REF!=D18)*#REF!))","v":""},{"$f":"IF(ISERROR(SUMPRODUCT((#REF!=D18)*#REF!)),\"\",SUMPRODUCT((#REF!=D18)*#REF!))","v":""},0,null,"Багамские Острова"]
[null,null,null,"случаев лечения",{"$f":"IF(ISERROR(SUMPRODUCT((#REF!=D19)*#REF!)),\"\",SUMPRODUCT((#REF!=D19)*#REF!))","v":""},{"$f":"IF(ISERROR(SUMPRODUCT((#REF!=D19)*#REF!)),\"\",SUMPRODUCT((#REF!=D19)*#REF!))","v":""},{"$f":"IF(ISERROR(SUMPRODUCT((#REF!=D19)*#REF!)),\"\",SUMPRODUCT((#REF!=D19)*#REF!))","v":""},0,{"$f":"IF(ISERROR(SUMPRODUCT((#REF!=D19)*#REF!)),\"\",SUMPRODUCT((#REF!=D19)*#REF!))","v":""},{"$f":"IF(ISERROR(SUMPRODUCT((#REF!=D19)*#REF!)),\"\",SUMPRODUCT((#REF!=D19)*#REF!))","v":""},{"$f":"IF(ISERROR(SUMPRODUCT((#REF!=D19)*#REF!)),\"\",SUMPRODUCT((#REF!=D19)*#REF!))","v":""},0,null,"Бангладеш"]
[null,null,null,null,null,null,null,null,null,null,null,null,null,"Барбадос"]
[null,null,null,null,null,null,null,null,null,null,null,null,null,"Бахрейн"]
[null,null,null,null,null,null,null,null,null,null,null,null,null,"Белиз"]
[null,null,null,null,null,null,null,null,null,null,null,null,null,"Белоруссия"]
[null,null,null,null,null,null,null,null,null,null,null,null,null,"Бельгия"]
[null,null,null,null,null,null,null,null,null,null,null,null,null,"Бенин"]
[null,null,null,null,null,null,null,null,null,null,null,null,null,"Бермудские Острова"]
[null,null,null,null,null,null,null,null,null,null,null,null,null,"Болгария "]
[null,null,null,null,null,null,null,null,null,null,null,null,null,"Боливия"]
[null,null,null,null,null,null,null,null,null,null,null,null,null,"Бонэйр"]
[null,null,null,null,null,null,null,null,null,null,null,null,null,"Босния и Герцеговина "]
[null,null,null,null,null,null,null,null,null,null,null,null,null,"Ботсвана"]
[null,null,null,null,null,null,null,null,null,null,null,null,null,"Бразилия"]
[null,null,null,null,null,null,null,null,null,null,null,null,null,"Бруней"]
[null,null,null,null,null,null,null,null,null,null,null,null,null,"Буркина-Фасо"]
[null,null,null,null,null,null,null,null,null,null,null,null,null,"Бурунди"]
[null,null,null,null,null,null,null,null,null,null,null,null,null,"Бутан"]
[null,null,null,null,null,null,null,null,null,null,null,null,null,"Вануату"]
[null,null,null,null,null,null,null,null,null,null,null,null,null,"Ватикан"]
[null,null,null,null,null,null,null,null,null,null,null,null,null,"Великобритания"]
[null,null,null,null,null,null,null,null,null,null,null,null,null,"Венгрия"]
[null,null,null,null,null,null,null,null,null,null,null,null,null,"Венесуэла "]
[null,null,null,null,null,null,null,null,null,null,null,null,null,"Виргинские Острова"]
[null,null,null,null,null,null,null,null,null,null,null,null,null,"Восточный Тимор"]
[null,null,null,null,null,null,null,null,null,null,null,null,null,"Вьетнам"]
[null,null,null,null,null,null,null,null,null,null,null,null,null,"Габон"]
[null,null,null,null,null,null,null,null,null,null,null,null,null,"Гаити "]
[null,null,null,null,null,null,null,null,null,null,null,null,null,"Гайана"]
[null,null,null,null,null,null,null,null,null,null,null,null,null,"Гамбия"]
[null,null,null,null,null,null,null,null,null,null,null,null,null,"Гана "]
[null,null,null,null,null,null,null,null,null,null,null,null,null,"Гваделупа"]
[null,null,null,null,null,null,null,null,null,null,null,null,null,"Гватемала "]
[null,null,null,null,null,null,null,null,null,null,null,null,null,"Гвиана "]
[null,null,null,null,null,null,null,null,null,null,null,null,null,"Гвинея"]
[null,null,null,null,null,null,null,null,null,null,null,null,null,"Гвинея-Бисау"]
[null,null,null,null,null,null,null,null,null,null,null,null,null,"Германия"]
[null,null,null,null,null,null,null,null,null,null,null,null,null,"Гернси"]
[null,null,null,null,null,null,null,null,null,null,null,null,null,"Гибралтар "]
[null,null,null,null,null,null,null,null,null,null,null,null,null,"Гондурас "]
[null,null,null,null,null,null,null,null,null,null,null,null,null,"Гонконг"]
[null,null,null,null,null,null,null,null,null,null,null,null,null,"Государство Палестина"]
[null,null,null,null,null,null,null,null,null,null,null,null,null,"Гренада"]
[null,null,null,null,null,null,null,null,null,null,null,null,null,"Гренландия "]
[null,null,null,null,null,null,null,null,null,null,null,null,null,"Греция "]
[null,null,null,null,null,null,null,null,null,null,null,null,null,"Грузия"]
[null,null,null,null,null,null,null,null,null,null,null,null,null,"Гуам"]
[null,null,null,null,null,null,null,null,null,null,null,null,null,"Дания "]
[null,null,null,null,null,null,null,null,null,null,null,null,null,"Демократическая Республика Конго"]
[null,null,null,null,null,null,null,null,null,null,null,null,null,"Джерси"]
[null,null,null,null,null,null,null,null,null,null,null,null,null,"Джибути"]
[null,null,null,null,null,null,null,null,null,null,null,null,null,"Доминика"]
[null,null,null,null,null,null,null,null,null,null,null,null,null,"Доминиканская Республика"]
[null,null,null,null,null,null,null,null,null,null,null,null,null,"Египет"]
[null,null,null,null,null,null,null,null,null,null,null,null,null,"Замбия"]
[null,null,null,null,null,null,null,null,null,null,null,null,null,"Зимбабве"]
[null,null,null,null,null,null,null,null,null,null,null,null,null,"Израиль"]
[null,null,null,null,null,null,null,null,null,null,null,null,null,"Индия "]
[null,null,null,null,null,null,null,null,null,null,null,null,null,"Индонезия"]
[null,null,null,null,null,null,null,null,null,null,null,null,null,"Иордания"]
[null,null,null,null,null,null,null,null,null,null,null,null,null,"Ирак"]
[null,null,null,null,null,null,null,null,null,null,null,null,null,"Иран "]
[null,null,null,null,null,null,null,null,null,null,null,null,null,"Ирландия"]
[null,null,null,null,null,null,null,null,null,null,null,null,null,"Исландия"]
[null,null,null,null,null,null,null,null,null,null,null,null,null,"Испания"]
[null,null,null,null,null,null,null,null,null,null,null,null,null,"Италия"]
[null,null,null,null,null,null,null,null,null,null,null,null,null,"Йемен"]
[null,null,null,null,null,null,null,null,null,null,null,null,null,"Кабо-Верде"]
[null,null,null,null,null,null,null,null,null,null,null,null,null,"Казахстан "]
[null,null,null,null,null,null,null,null,null,null,null,null,null,"Камбоджа"]
[null,null,null,null,null,null,null,null,null,null,null,null,null,"Камерун"]
[null,null,null,null,null,null,null,null,null,null,null,null,null,"Канада"]
[null,null,null,null,null,null,null,null,null,null,null,null,null,"Катар"]
[null,null,null,null,null,null,null,null,null,null,null,null,null,"Кения"]
[null,null,null,null,null,null,null,null,null,null,null,null,null,"Кипр "]
[null,null,null,null,null,null,null,null,null,null,null,null,null,"Киргизия "]
[null,null,null,null,null,null,null,null,null,null,null,null,null,"Кирибати"]
[null,null,null,null,null,null,null,null,null,null,null,null,null,"Китайская Народная Республика"]
[null,null,null,null,null,null,null,null,null,null,null,null,null,"Китайская Республика"]
[null,null,null,null,null,null,null,null,null,null,null,null,null,"Кокосовые острова"]
[null,null,null,null,null,null,null,null,null,null,null,null,null,"Колумбия"]
[null,null,null,null,null,null,null,null,null,null,null,null,null,"Коморские Острова"]
[null,null,null,null,null,null,null,null,null,null,null,null,null,"Корейская Народно-Демократическая Республика"]
[null,null,null,null,null,null,null,null,null,null,null,null,null,"Косово "]
[null,null,null,null,null,null,null,null,null,null,null,null,null,"Коста-Рика"]
[null,null,null,null,null,null,null,null,null,null,null,null,null,"Кот-д’Ивуар"]
[null,null,null,null,null,null,null,null,null,null,null,null,null,"Куба"]
[null,null,null,null,null,null,null,null,null,null,null,null,null,"Кувейт"]
[null,null,null,null,null,null,null,null,null,null,null,null,null,"Кука острова "]
[null,null,null,null,null,null,null,null,null,null,null,null,null,"Кюрасао"]
[null,null,null,null,null,null,null,null,null,null,null,null,null,"Лаос"]
[null,null,null,null,null,null,null,null,null,null,null,null,null,"Латвия "]
[null,null,null,null,null,null,null,null,null,null,null,null,null,"Лесото"]
[null,null,null,null,null,null,null,null,null,null,null,null,null,"Либерия"]
[null,null,null,null,null,null,null,null,null,null,null,null,null,"Ливан "]
[null,null,null,null,null,null,null,null,null,null,null,null,null,"Ливия"]
[null,null,null,null,null,null,null,null,null,null,null,null,null,"Литва "]
[null,null,null,null,null,null,null,null,null,null,null,null,null,"Лихтенштейн"]
[null,null,null,null,null,null,null,null,null,null,null,null,null,"Люксембург"]
[null,null,null,null,null,null,null,null,null,null,null,null,null,"Маврикий"]
[null,null,null,null,null,null,null,null,null,null,null,null,null,"Мавритания"]
[null,null,null,null,null,null,null,null,null,null,null,null,null,"Мадагаскар"]
[null,null,null,null,null,null,null,null,null,null,null,null,null,"Майотта"]
[null,null,null,null,null,null,null,null,null,null,null,null,null,"Макао "]
[null,null,null,null,null,null,null,null,null,null,null,null,null,"Македония"]
[null,null,null,null,null,null,null,null,null,null,null,null,null,"Малави"]
[null,null,null,null,null,null,null,null,null,null,null,null,null,"Малайзия"]
[null,null,null,null,null,null,null,null,null,null,null,null,null,"Мали "]
[null,null,null,null,null,null,null,null,null,null,null,null,null,"Мальдивы "]
[null,null,null,null,null,null,null,null,null,null,null,null,null,"Мальта"]
[null,null,null,null,null,null,null,null,null,null,null,null,null,"Марокко"]
[null,null,null,null,null,null,null,null,null,null,null,null,null,"Мартиника"]
[null,null,null,null,null,null,null,null,null,null,null,null,null,"Маршалловы Острова"]
[null,null,null,null,null,null,null,null,null,null,null,null,null,"Мексика"]
[null,null,null,null,null,null,null,null,null,null,null,null,null,"Микронезия "]
[null,null,null,null,null,null,null,null,null,null,null,null,null,"Мозамбик"]
[null,null,null,null,null,null,null,null,null,null,null,null,null,"Молдавия"]
[null,null,null,null,null,null,null,null,null,null,null,null,null,"Монако"]
[null,null,null,null,null,null,null,null,null,null,null,null,null,"Монголия"]
[null,null,null,null,null,null,null,null,null,null,null,null,null,"Монтсеррат"]
[null,null,null,null,null,null,null,null,null,null,null,null,null,"Мьянма "]
[null,null,null,null,null,null,null,null,null,null,null,null,null,"Мэн "]
[null,null,null,null,null,null,null,null,null,null,null,null,null,"Намибия "]
[null,null,null,null,null,null,null,null,null,null,null,null,null,"Науру"]
[null,null,null,null,null,null,null,null,null,null,null,null,null,"Непал"]
[null,null,null,null,null,null,null,null,null,null,null,null,null,"Нигер "]
[null,null,null,null,null,null,null,null,null,null,null,null,null,"Нигерия"]
[null,null,null,null,null,null,null,null,null,null,null,null,null,"Нидерланды"]
[null,null,null,null,null,null,null,null,null,null,null,null,null,"Никарагуа"]
[null,null,null,null,null,null,null,null,null,null,null,null,null,"Ниуэ"]
[null,null,null,null,null,null,null,null,null,null,null,null,null,"Новая Зеландия"]
[null,null,null,null,null,null,null,null,null,null,null,null,null,"Новая Каледония"]
[null,null,null,null,null,null,null,null,null,null,null,null,null,"Норвегия"]
[null,null,null,null,null,null,null,null,null,null,null,null,null,"Норфолк остров"]
[null,null,null,null,null,null,null,null,null,null,null,null,null,"Объединённые Арабские Эмираты"]
[null,null,null,null,null,null,null,null,null,null,null,null,null,"Оман"]
[null,null,null,null,null,null,null,null,null,null,null,null,null,"Острова Кайман"]
[null,null,null,null,null,null,null,null,null,null,null,null,null,"Пакистан "]
[null,null,null,null,null,null,null,null,null,null,null,null,null,"Палау"]
[null,null,null,null,null,null,null,null,null,null,null,null,null,"Панама"]
[null,null,null,null,null,null,null,null,null,null,null,null,null,"Папуа — Новая Гвинея"]
[null,null,null,null,null,null,null,null,null,null,null,null,null,"Парагвай"]
[null,null,null,null,null,null,null,null,null,null,null,null,null,"Перу"]
[null,null,null,null,null,null,null,null,null,null,null,null,null,"Питкэрн острова "]
[null,null,null,null,null,null,null,null,null,null,null,null,null,"Полинезия Французская"]
[null,null,null,null,null,null,null,null,null,null,null,null,null,"Польша "]
[null,null,null,null,null,null,null,null,null,null,null,null,null,"Португалия"]
[null,null,null,null,null,null,null,null,null,null,null,null,null,"Пуэрто-Рико"]
[null,null,null,null,null,null,null,null,null,null,null,null,null,"Республика Конго"]
[null,null,null,null,null,null,null,null,null,null,null,null,null,"Республика Корея"]
[null,null,null,null,null,null,null,null,null,null,null,null,null,"Реюньон"]
[null,null,null,null,null,null,null,null,null,null,null,null,null,"Рождества остров "]
[null,null,null,null,null,null,null,null,null,null,null,null,null,"Руанда"]
[null,null,null,null,null,null,null,null,null,null,null,null,null,"Румыния"]
[null,null,null,null,null,null,null,null,null,null,null,null,null,"Саба"]
[null,null,null,null,null,null,null,null,null,null,null,null,null,"Сальвадор"]
[null,null,null,null,null,null,null,null,null,null,null,null,null,"Самоа"]
[null,null,null,null,null,null,null,null,null,null,null,null,null,"Самоа Американское "]
[null,null,null,null,null,null,null,null,null,null,null,null,null,"Сан-Марино "]
[null,null,null,null,null,null,null,null,null,null,null,null,null,"Сан-Томе и Принсипи "]
[null,null,null,null,null,null,null,null,null,null,null,null,null,"Саудовская Аравия"]
[null,null,null,null,null,null,null,null,null,null,null,null,null,"Сахарская Арабская Демократическая Республика"]
[null,null,null,null,null,null,null,null,null,null,null,null,null,"Свазиленд"]
[null,null,null,null,null,null,null,null,null,null,null,null,null,"Святой Елены"]
[null,null,null,null,null,null,null,null,null,null,null,null,null,"Северные Марианские Острова"]
[null,null,null,null,null,null,null,null,null,null,null,null,null,"Северный Кипр"]
[null,null,null,null,null,null,null,null,null,null,null,null,null,"Сейшельские Острова "]
[null,null,null,null,null,null,null,null,null,null,null,null,null,"Сен-Бартелеми"]
[null,null,null,null,null,null,null,null,null,null,null,null,null,"Сенегал"]
[null,null,null,null,null,null,null,null,null,null,null,null,null,"Сен-Мартен"]
[null,null,null,null,null,null,null,null,null,null,null,null,null,"Сен-Пьер и Микелон "]
[null,null,null,null,null,null,null,null,null,null,null,null,null,"Сент-Винсент и Гренадины"]
[null,null,null,null,null,null,null,null,null,null,null,null,null,"Сент-Китс и Невис"]
[null,null,null,null,null,null,null,null,null,null,null,null,null,"Сент-Люсия"]
[null,null,null,null,null,null,null,null,null,null,null,null,null,"Сербия "]
[null,null,null,null,null,null,null,null,null,null,null,null,null,"Сингапур"]
[null,null,null,null,null,null,null,null,null,null,null,null,null,"Синт-Мартен"]
[null,null,null,null,null,null,null,null,null,null,null,null,null,"Синт-Эстатиус"]
[null,null,null,null,null,null,null,null,null,null,null,null,null,"Сирия"]
[null,null,null,null,null,null,null,null,null,null,null,null,null,"Словакия "]
[null,null,null,null,null,null,null,null,null,null,null,null,null,"Словения "]
[null,null,null,null,null,null,null,null,null,null,null,null,null,"Соединённые Штаты Америки"]
[null,null,null,null,null,null,null,null,null,null,null,null,null,"Соломоновы Острова"]
[null,null,null,null,null,null,null,null,null,null,null,null,null,"Сомали"]
[null,null,null,null,null,null,null,null,null,null,null,null,null,"Судан"]
[null,null,null,null,null,null,null,null,null,null,null,null,null,"Суринам"]
[null,null,null,null,null,null,null,null,null,null,null,null,null,"Сьерра-Леоне"]
[null,null,null,null,null,null,null,null,null,null,null,null,null,"Таджикистан"]
[null,null,null,null,null,null,null,null,null,null,null,null,null,"Таиланд"]
[null,null,null,null,null,null,null,null,null,null,null,null,null,"Танзания"]
[null,null,null,null,null,null,null,null,null,null,null,null,null,"Тёркс и Кайкос "]
[null,null,null,null,null,null,null,null,null,null,null,null,null,"Того "]
[null,null,null,null,null,null,null,null,null,null,null,null,null,"Токелау "]
[null,null,null,null,null,null,null,null,null,null,null,null,null,"Тонга "]
[null,null,null,null,null,null,null,null,null,null,null,null,null,"Тринидад и Тобаго "]
[null,null,null,null,null,null,null,null,null,null,null,null,null,"Тувалу"]
[null,null,null,null,null,null,null,null,null,null,null,null,null,"Тунис "]
[null,null,null,null,null,null,null,null,null,null,null,null,null,"Туркмения"]
[null,null,null,null,null,null,null,null,null,null,null,null,null,"Турция "]
[null,null,null,null,null,null,null,null,null,null,null,null,null,"Уганда "]
[null,null,null,null,null,null,null,null,null,null,null,null,null,"Узбекистан"]
[null,null,null,null,null,null,null,null,null,null,null,null,null,"Украина"]
[null,null,null,null,null,null,null,null,null,null,null,null,null,"Уоллис и Футуна"]
[null,null,null,null,null,null,null,null,null,null,null,null,null,"Уругвай"]
[null,null,null,null,null,null,null,null,null,null,null,null,null,"Фареры "]
[null,null,null,null,null,null,null,null,null,null,null,null,null,"Фиджи"]
[null,null,null,null,null,null,null,null,null,null,null,null,null,"Филиппины"]
[null,null,null,null,null,null,null,null,null,null,null,null,null,"Финляндия"]
[null,null,null,null,null,null,null,null,null,null,null,null,null,"Фолклендские острова "]
[null,null,null,null,null,null,null,null,null,null,null,null,null,"Франция"]
[null,null,null,null,null,null,null,null,null,null,null,null,null,"Хорватия "]
[null,null,null,null,null,null,null,null,null,null,null,null,null,"ЦАР "]
[null,null,null,null,null,null,null,null,null,null,null,null,null,"Чад"]
[null,null,null,null,null,null,null,null,null,null,null,null,null,"Черногория"]
[null,null,null,null,null,null,null,null,null,null,null,null,null,"Чехия "]
[null,null,null,null,null,null,null,null,null,null,null,null,null,"Чили "]
[null,null,null,null,null,null,null,null,null,null,null,null,null,"Швейцария "]
[null,null,null,null,null,null,null,null,null,null,null,null,null,"Швеция"]
[null,null,null,null,null,null,null,null,null,null,null,null,null,"Шри-Ланка"]
[null,null,null,null,null,null,null,null,null,null,null,null,null,"Эквадор "]
[null,null,null,null,null,null,null,null,null,null,null,null,null,"Экваториальная Гвинея"]
[null,null,null,null,null,null,null,null,null,null,null,null,null,"Эритрея"]
[null,null,null,null,null,null,null,null,null,null,null,null,null,"Эстония "]
[null,null,null,null,null,null,null,null,null,null,null,null,null,"Эфиопия"]
[null,null,null,null,null,null,null,null,null,null,null,null,null,"Южная Осетия"]
[null,null,null,null,null,null,null,null,null,null,null,null,null,"Южно-Африканская Республика"]
[null,null,null,null,null,null,null,null,null,null,null,null,null,"Южный Судан "]
[null,null,null,null,null,null,null,null,null,null,null,null,null,"Ямайка"]
[null,null,null,null,null,null,null,null,null,null,null,null,null,"Япония"]
[null,null,null,null,null,null,null,null,null,null,null,null,null,"Всего"]

{"sheet":"Таблица","index":2,"n_rows":34,"n_cols":11,"rows_kept":34,"cut":false,"hidden":true,"merged":[[2,10,5,10],[3,3,5,3],[3,4,5,4],[3,5,5,5],[3,6,3,9],[4,6,5,6],[4,7,4,9],[1,0,1,1],[2,0,5,0],[2,1,5,1],[2,2,5,2],[2,3,2,9]]}
[]
["Наименование медицинской организации"]
["№ \nстроки","Наименование показателя","Единица измерения","Объемы медицинской помощи и финансирования за счет:",null,null,null,null,null,null,"итого"]
[null,null,null,"федерального бюджета","консолидированного бюджета субъекта","средств ОМС","негосударственных источников"]
[null,null,null,null,null,null,"негосударственных источников","негосударственных источников в т.ч. домашних хозяйств (личных средств граждан)"]
[null,null,null,null,null,null,null,"негосударственных источников в т.ч. домашних хозяйств (личных средств граждан)","негосударственных источников в т.ч. добровольного медицинского страхования","негосударственных источников в т.ч. прочих источников финансирования"]
[0,1,2,3,4,5,6,7,8,9,10]
[2,"медицинская помощь, оказанная в амбулаторных условиях","руб.",null,null,null,{"$f":"SUM(H8:J8)","v":0},null,null,null,{"$f":"D8+E8+F8+G8","v":0}]
[null,null,"лиц, которым оказана медицинская помощь, чел.",null,null,null,{"$f":"SUM(H9:J9)","v":0},null,null,null,{"$f":"D9+E9+F9+G9","v":0}]
[null,null,"посещений",null,null,null,0,null,null,null,0]
["2.1","- с учетом профиля медицинской помощи","руб.",null,null,null,{"$f":"SUM(H11:J11)","v":0}]
[null,null,"лиц, которым оказана медицинская помощь, чел.",null,null,null,{"$f":"SUM(H12:J12)","v":0},null,null,null,{"$f":"D12+E12+F12+G12","v":0}]
[null,null,"посещений",null,null,null,0,null,null,null,0]
["2.2","- с учетом гражданства пациентов","руб.",null,null,null,{"$f":"SUM(H14:J14)","v":0}]
[null,null,"лиц, которым оказана медицинская помощь, чел.",null,null,null,{"$f":"SUM(H15:J15)","v":0},null,null,null,{"$f":"D15+E15+F15+G15","v":0}]
[null,null,"посещений",null,null,null,0,null,null,null,0]
[3,"медицинская помощь, оказанная в стационарных условиях","руб.",null,null,null,{"$f":"SUM(H17:J17)","v":0},null,null,null,{"$f":"D17+E17+F17+G17","v":0}]
[null,null,"лиц, которым оказана медицинская помощь, чел.",null,null,null,{"$f":"SUM(H18:J18)","v":0},null,null,null,{"$f":"D18+E18+F18+G18","v":0}]
[null,null,"случаев госпитлизации",null,null,null,0,null,null,null,{"$f":"D19+E19+F19+G19","v":0}]
["3.1","- с учетом профиля медицинской помощи","руб.",null,null,null,{"$f":"SUM(H20:J20)","v":0}]
[null,null,"лиц, которым оказана медицинская помощь, чел.",null,null,null,{"$f":"SUM(H21:J21)","v":0},null,null,null,{"$f":"D21+E21+F21+G21","v":0}]
[null,null,"случаев госпитлизации",null,null,null,0,null,null,null,{"$f":"D22+E22+F22+G22","v":0}]
["3.2","- с учетом гражданства пациентов","руб.",null,null,null,{"$f":"SUM(H23:J23)","v":0},null,null,null,{"$f":"D23+E23+F23+G23","v":0}]
[null,null,"лиц, которым оказана медицинская помощь, чел.",null,null,null,{"$f":"SUM(H24:J24)","v":0},null,null,null,{"$f":"D24+E24+F24+G24","v":0}]
[null,null,"случаев госпитлизации",null,null,null,0,null,null,null,{"$f":"D25+E25+F25+G25","v":0}]
[4,"медицинская помощь в условиях дневного стационара","руб.",null,null,null,{"$f":"SUM(H26:J26)","v":0},null,null,null,{"$f":"D26+E26+F26+G26","v":0}]
[null,null,"лиц, которым оказана медицинская помощь, чел.",null,null,null,{"$f":"SUM(H27:J27)","v":0},null,null,null,{"$f":"D27+E27+F27+G27","v":0}]
[null,null,"случаев лечения",null,null,null,{"$f":"SUM(H28:J28)","v":0},null,null,null,{"$f":"D28+E28+F28+G28","v":0}]
["4.1","- с учетом профиля медицинской помощи","руб.",null,null,null,{"$f":"SUM(H29:J29)","v":0},null,null,null,{"$f":"D29+E29+F29+G29","v":0}]
[null,null,"лиц, которым оказана медицинская помощь, чел.",null,null,null,{"$f":"SUM(H30:J30)","v":0},null,null,null,{"$f":"D30+E30+F30+G30","v":0}]
[null,null,"случаев лечения",null,null,null,{"$f":"SUM(H31:J31)","v":0},null,null,null,{"$f":"D31+E31+F31+G31","v":0}]
["4.2","- с учетом гражданства пациентов","руб.",null,null,null,{"$f":"SUM(H32:J32)","v":0},null,null,null,{"$f":"D32+E32+F32+G32","v":0}]
[null,null,"лиц, которым оказана медицинская помощь, чел.",null,null,null,{"$f":"SUM(H33:J33)","v":0},null,null,null,{"$f":"D33+E33+F33+G33","v":0}]
[null,null,"случаев лечения",null,null,null,{"$f":"SUM(H34:J34)","v":0},null,null,null,{"$f":"D34+E34+F34+G34","v":0}]

{"sheet":"Справочники","index":3,"n_rows":248,"n_cols":3,"rows_kept":248,"cut":false,"hidden":false,"merged":[]}
["Перечень стран","Перечень профилей","Перечень МО"]
["Абхазия ","Акушерское дело","Выберите организацию"]
["Австралия","Акушерство и гинекология","Рыбинская станция переливания крови"]
["Австрия","Аллергология и иммунология","Городская больница № 1"]
["Азад Кашмир","Анестезиология и реаниматология","Городская больница № 2 им. Н.И. Пирогова"]
["Азербайджан","Гастроэнтерология","Городская больница № 3"]
["Аландские острова","Гематология","Городская больница № 4"]
["Албания ","Гериатрия","Городская больница № 6"]
["Алжир ","Неврология","Городская поликлиника № 3 им. Н.А. Семашко"]
["Ангилья","Онкология, радиология, радиотерапия","Рыбинская психиатрическая больница"]
["Ангола ","Детская онкология","Городская детская больница"]
["Андорра ","Дерматовенерология","Станция скорой медицинской помощи (г. Рыбинск)"]
["Антигуа и Барбуда","Инфекционные болезни","Рыбинская стоматологическая поликлиника"]
["Аргентина","Кардиология","Клиническая больница скорой медицинской помощи имени Н.В. Соловьева"]
["Армения","Детская кардиология","Городская больница имени Н.А.Семашко"]
["Аруба","Колопроктология","Клиническая больница № 2"]
["Афганистан","Комплексные медицинские осмотры","Клиническая больница № 3"]
["Багамские Острова","Косметология","Клиническая больница № 8"]
["Бангладеш","Медицинская реабилитация","Клиническая больница № 9"]
["Барбадос","Нейрохирургия","Клиническая больница № 10"]
["Бахрейн","Неонатология","Центральная городская больница"]
["Белиз","Нефрология","Детская поликлиника № 3"]
["Белоруссия","Оториноларингология","Детская поликлиника № 5"]
["Бельгия","Офтальмология","Инфекционная клиническая больница"]
["Бенин","Педиатрия","Территориальный центр медицины катастроф"]
["Бермудские Острова","Психиатрия","Областная детская клиническая больница"]
["Болгария ","Психиатрия-наркология","Областная клиническая больница"]
["Боливия","Психотерапия","Областная клиническая онкологическая больница"]
["Бонэйр","Пульмонология","Областная клиническая туберкулезная больница"]
["Босния и Герцеговина ","Ревматология","Областная станция переливания крови"]
["Ботсвана","Санаторно-курортное лечение","Областной врачебно-физкультурный диспансер"]
["Бразилия","Сердечно-сосудистая хирургия","Областной кожно-венерологический диспансер"]
["Бруней","Стоматология (в т.ч. ортодонтия, ортопедия и имплантология)","Областной перинатальный центр"]
["Буркина-Фасо","Детская стоматология","Ярославская областная клиническая наркологическая больница"]
["Бурунди","Терапия","Ярославская областная клиническая психиатрическая больница"]
["Бутан","Травматология и ортопедия","Ярославская областная стоматологическая поликлиника"]
["Вануату","Трансплатология","Ярославский областной клинический госпиталь ветеранов войн - международный Центр по проблемам пожилых людей Здоровое долголетие"]
["Ватикан","Урология (в т.ч. детская урология-андрология)","Областной специализированный дом ребенка №1"]
["Великобритания","Фтизиатрия","Специализированный дом ребенка №2"]
["Венгрия","Хирургия","Станция скорой медицинской помощи (г. Ярославль)"]
["Венесуэла ","Детская хирургия","Большесельская центральная районная больница"]
["Виргинские Острова","Хирургия пластическая","Борисоглебская центральная районная больница"]
["Восточный Тимор","Челюстно-лицевая хирургия","Брейтовская центральная районная больница"]
["Вьетнам","Экстракорпоральное оплодотворение","Гаврилов-Ямская центральная районная больница"]
["Габон","Эндокринология","Даниловская центральная районная больница"]
["Гаити ","Детская эндокринология","Любимская центральная районная больница"]
["Гайана","Прочие","Центральная районная больница им. Д.Л. Соколова"]
["Гамбия",null,"Некоузская центральная районная больница"]
["Гана ",null,"Некрасовская центральная районная больница"]
["Гваделупа",null,"Бурмакинская районная больница № 1"]
["Гватемала ",null,"Пречистенская центральная районная больница"]
["Гвиана ",null,"Переславская центральная районная больница"]
["Гвинея",null,"Пошехонская центральная районная больница"]
["Гвинея-Бисау",null,"Ростовская центральная районная больница"]
["Германия",null,"Рыбинская центральная районная поликлиника"]
["Гернси",null,"Тутаевская центральная районная больница"]
["Гибралтар ",null,"Угличская центральная районная больница"]
["Гондурас ",null,"Ярославская центральная районная больница"]
["Гонконг"]
["Гренада"]
["Гренландия "]
["Греция "]
["Грузия"]
["Гуам"]
["Дания "]
["Джерси"]
["Джибути"]
["Доминика"]
["Доминиканская Республика"]
["Египет"]
["Замбия"]
["Зимбабве"]
["Израиль"]
["Индия "]
["Индонезия"]
["Иордания"]
["Ирак"]
["Иран "]
["Ирландия"]
["Исландия"]
["Испания"]
["Италия"]
["Йемен"]
["Кабо-Верде"]
["Казахстан "]
["Острова Кайман"]
["Камбоджа"]
["Камерун"]
["Канада"]
["Катар"]
["Кения"]
["Кипр "]
["Северный Кипр"]
["Киргизия "]
["Кирибати"]
["Китайская Народная Республика"]
["Китайская Республика"]
["Кокосовые острова"]
["Колумбия"]
["Коморские Острова"]
["Демократическая Республика Конго"]
["Республика Конго"]
["Корейская Народно-Демократическая Республика"]
["Республика Корея"]
["Косово "]
["Коста-Рика"]
["Кот-д’Ивуар"]
["Куба"]
["Кувейт"]
["Кука острова "]
["Кюрасао"]
["Лаос"]
["Латвия "]
["Лесото"]
["Либерия"]
["Ливан "]
["Ливия"]
["Литва "]
["Лихтенштейн"]
["Люксембург"]
["Маврикий"]
["Мавритания"]
["Мадагаскар"]
["Майотта"]
["Макао "]
["Македония"]
["Малави"]
["Малайзия"]
["Мали "]
["Мальдивы "]
["Мальта"]
["Марокко"]
["Мартиника"]
["Маршалловы Острова"]
["Мексика"]
["Микронезия "]
["Мозамбик"]
["Молдавия"]
["Монако"]
["Монголия"]
["Монтсеррат"]
["Мьянма "]
["Мэн "]
["Намибия "]
["Науру"]
["Непал"]
["Нигер "]
["Нигерия"]
["Нидерланды"]
["Никарагуа"]
["Ниуэ"]
["Новая Зеландия"]
["Новая Каледония"]
["Норвегия"]
["Норфолк остров"]
["Объединённые Арабские Эмираты"]
["Оман"]
["Пакистан "]
["Палау"]
["Государство Палестина"]
["Панама"]
["Папуа — Новая Гвинея"]
["Парагвай"]
["Перу"]
["Питкэрн острова "]
["Полинезия Французская"]
["Польша "]
["Португалия"]
["Пуэрто-Рико"]
["Реюньон"]
["Рождества остров "]
["Руанда"]
["Румыния"]
["Саба"]
["Сальвадор"]
["Самоа"]
["Самоа Американское "]
["Сан-Марино "]
["Сан-Томе и Принсипи "]
["Саудовская Аравия"]
["Сахарская Арабская Демократическая Республика"]
["Свазиленд"]
["Святой Елены"]
["Северные Марианские Острова"]
["Сейшельские Острова "]
["Сенегал"]
["Сен-Бартелеми"]
["Сен-Мартен"]
["Сен-Пьер и Микелон "]
["Сент-Винсент и Гренадины"]
["Сент-Китс и Невис"]
["Сент-Люсия"]
["Сербия "]
["Сингапур"]
["Синт-Мартен"]
["Синт-Эстатиус"]
["Сирия"]
["Словакия "]
["Словения "]
["Соединённые Штаты Америки"]
["Соломоновы Острова"]
["Сомали"]
["Судан"]
["Суринам"]
["Сьерра-Леоне"]
["Таджикистан"]
["Таиланд"]
["Танзания"]
["Тёркс и Кайкос "]
["Того "]
["Токелау "]
["Тонга "]
["Тринидад и Тобаго "]
["Тувалу"]
["Тунис "]
["Туркмения"]
["Турция "]
["Уганда "]
["Узбекистан"]
["Украина"]
["Уоллис и Футуна"]
["Уругвай"]
["Фареры "]
["Фиджи"]
["Филиппины"]
["Финляндия"]
["Фолклендские острова "]
["Франция"]
["Хорватия "]
["ЦАР "]
["Чад"]
["Черногория"]
["Чехия "]
["Чили "]
["Швейцария "]
["Швеция"]
["Шри-Ланка"]
["Эквадор "]
["Экваториальная Гвинея"]
["Эритрея"]
["Эстония "]
["Эфиопия"]
["Южная Осетия"]
["Южно-Африканская Республика"]
["Южный Судан "]
["Ямайка"]
["Япония"]
["Всего"]